bitfinex/quotes_ETHUSD_20250801
["timestamp","ask_amount","ask_price","bid_price","bid_amount"]
[1754074687999,8.981,3551.7,3551.6,2.81563239]
[1754074688333,8.981,3551.7,3551.0,2.3227]
[1754074688507,4.3,3551.7,3551.6,2.81563239]
[1754074688711,8.977,3551.7,3551.6,5.13833239]
[1754074689339,0.001,3552.1,3552.0,2.81531531]
[1754074689649,4.676,3552.1,3550.6,0.4705]
[1754074689941,0.4686,3552.1,3550.8,3.0]
[1754074690140,5.239,3552.0,3551.9,2.81539457]
[1754074690344,0.001,3552.1,3551.9,2.81539457]
[1754074690345,0.001,3552.1,3552.0,2.81531531]
[1754074690499,4.692,3552.1,3552.0,2.81531531]
[1754074691314,0.001,3552.1,3551.5,0.4705]
[1754074691513,4.691,3552.1,3552.0,2.81531531]
[1754074691792,0.001,3552.1,3552.0,2.81531531]
[1754074692076,4.688,3552.1,3552.0,8.13801531]
[1754074692637,4.687,3552.2,3552.1,5.81523605]
[1754074692836,0.002,3552.5,3552.4,5.81499831]
[1754074693037,4.689,3552.5,3552.4,5.81499831]
[1754074693238,4.689,3552.5,3552.4,8.13769831]
[1754074693685,7.609195,3554.4,3552.5,5.81491907]
[1754074693976,0.4308,3554.2,3553.9,2.81378445]
[1754074694192,6.764,3554.4,3553.1,0.4705]
[1754074694338,0.1408,3553.8,3553.4,3.0]
[1754074694538,0.1408,3553.8,3553.4,2.81416008]
[1754074694762,0.1408,3553.8,3553.7,2.81396853]
[1754074695378,6.764,3554.4,3553.7,1.8522]
[1754074695541,4.68,3554.3,3553.5,3.0]
[1754074695736,7.48441396,3554.4,3554.2,2.81354787]
[1754074695954,4.68,3554.3,3554.0,2.81366966]
[1754074696135,4.68,3554.3,3553.9,2.8137918]
[1754074696332,0.1408,3554.0,3553.9,2.8137918]
[1754074696585,0.1408,3554.0,3553.8,2.81387951]
[1754074696874,4.678,3553.9,3553.8,2.81388935]
[1754074697288,4.678,3553.9,3553.3,0.4742]
[1754074697289,0.55,3553.8,3551.0,1.8969]
[1754074697575,0.55,3552.9,3551.5,1.8969]
[1754074697777,7.28788617,3553.3,3551.5,1.8969]
[1754074697778,0.55,3552.7,3552.2,2.81515004]
[1754074697986,2.81449326,3553.1,3552.3,2.81502297]
[1754074697987,0.55,3552.5,3552.3,2.81502297]
[1754074698142,0.55,3552.5,3552.4,2.81499831]
[1754074698339,2.8049464,3553.7,3552.7,2.8147138]
[1754074698544,2.8049464,3553.7,3552.8,2.81462755]
[1754074698545,2.81412691,3553.5,3552.8,2.81462755]
[1754074698769,5.246,3553.6,3552.3,2.3711]
[1754074698945,5.246,3553.6,3552.4,2.81499831]
[1754074699142,5.246,3553.6,3553.0,2.8144935]
[1754074699382,5.246,3553.6,3552.8,2.8146782]
[1754074699582,5.246,3553.6,3552.4,2.81495605]
[1754074699583,0.55,3553.4,3552.9,2.81457691]
[1754074699817,5.15588531,3553.3,3551.9,0.4742]
[1754074700120,0.55,3553.1,3552.0,3.0]
[1754074700278,0.4636,3554.0,3552.3,3.0]
[1754074700478,4.691,3553.8,3552.4,2.3711]
[1754074700680,0.55,3553.5,3552.9,2.81457222]
[1754074700881,0.55,3553.5,3552.4,2.3711]
[1754074701111,1.119148,3553.7,3552.4,2.3711]
[1754074701275,0.55,3553.1,3551.7,1.8969]
[1754074701480,7.28788617,3553.4,3551.4,2.81579095]
[1754074701481,0.55,3552.6,3551.4,2.81579095]
[1754074701830,0.55,3552.4,3551.8,2.81544754]
[1754074701994,0.55,3552.4,3551.3,0.4742]
[1754074702190,3.3650003,3552.4,3551.3,0.4742]
[1754074702407,0.55,3552.4,3551.8,2.81541318]
[1754074702606,3.3650032,3552.4,3551.8,2.81541318]
[1754074702808,0.55,3552.2,3551.8,2.81541318]
[1754074703210,0.55,3552.2,3551.2,1.8969]
[1754074703409,3.36531794,3552.0,3551.3,2.81581291]
[1754074703609,0.55,3551.8,3551.3,2.81584787]
[1754074703809,0.55,3551.6,3551.1,2.81597647]
[1754074704014,0.55,3551.6,3550.8,1.8969]
[1754074704235,0.55,3551.6,3551.0,2.81603145]
[1754074704437,0.55,3551.6,3551.1,2.81602553]
[1754074704640,4.685,3551.9,3550.9,0.4742]
[1754074704810,0.55,3551.7,3550.9,2.3711]
[1754074705011,0.55,3551.5,3551.3,2.81581665]
[1754074705210,4.687,3551.4,3551.2,2.81592621]
[1754074705529,4.687,3551.4,3551.3,2.81587024]
[1754074705735,0.55,3552.2,3551.7,2.81549277]
[1754074706028,0.33647762,3552.5,3551.3,2.3711]
[1754074706230,4.686,3552.1,3552.0,2.81531531]
[1754074707020,4.686,3552.1,3552.0,5.81531531]
[1754074707557,4.682,3552.5,3552.3,3.0]
[1754074707760,4.682,3552.7,3552.6,2.81483983]
[1754074707942,2.910748,3553.7,3553.0,2.81449431]
[1754074708115,8.74474404,3553.6,3552.8,2.81460902]
[1754074708322,5.93066962,3553.6,3553.0,2.81445497]
[1754074708763,5.93066962,3553.6,3552.9,2.81457611]
[1754074708933,0.1408,3553.0,3552.5,1.8969]
[1754074709132,4.678,3553.3,3553.2,2.81436451]
[1754074709466,4.678,3553.3,3553.2,5.81436451]
[1754074710953,4.3,3553.4,3553.3,2.81428531]
[1754074711171,4.3,3554.3,3554.2,2.81357267]
[1754074711463,4.3,3554.4,3553.6,2.3711]
[1754074711669,0.55,3554.1,3553.3,3.0]
[1754074711966,0.1408,3553.8,3553.7,5.81396853]
[1754074712120,2.0188,3553.8,3553.3,0.1408]
[1754074712327,0.55,3552.7,3551.2,2.3711]
[1754074712550,4.709,3552.6,3551.4,2.81579095]
[1754074712748,4.709,3552.6,3552.0,2.81529161]
[1754074712961,0.55,3552.4,3551.5,0.4742]
[1754074713261,0.55,3552.4,3551.6,3.0]
[1754074713419,0.55,3552.4,3551.8,2.81540702]
[1754074713624,0.55,3552.4,3551.9,2.81537979]
[1754074713834,0.55,3552.4,3551.6,2.81559211]
[1754074714045,0.55,3552.4,3551.8,2.81545407]
[1754074714247,0.55,3552.4,3551.3,0.23711]
[1754074714248,0.55,3552.2,3551.3,0.23711]
[1754074714457,4.702,3552.1,3551.5,2.81565107]
[1754074714657,4.702,3552.1,3552.0,2.81531531]
[1754074715371,4.702,3552.1,3552.0,5.18641531]
[1754074715372,4.701,3552.1,3552.0,5.18641531]
[1754074715570,4.701,3552.1,3552.0,2.81531531]
[1754074716257,4.701,3552.1,3551.5,2.3711]
[1754074716564,4.701,3552.1,3552.0,2.81531531]
[1754074716980,0.55,3552.0,3551.8,3.0]
[1754074717196,0.55,3552.0,3550.9,2.3711]
[1754074717354,2.9531,3552.0,3550.9,2.3711]
[1754074717553,2.9531,3552.0,3551.5,2.8156543]
[1754074717740,2.81460215,3552.9,3552.2,2.81509273]
[1754074717945,5.246,3552.8,3552.3,2.81500209]
[1754074718180,0.55,3552.8,3551.9,2.3711]
[1754074718355,0.55,3552.6,3552.4,2.8149371]
[1754074718685,0.55,3552.6,3551.9,2.3711]
[1754074718883,4.693,3552.5,3552.2,2.81514644]
[1754074719086,4.693,3552.5,3551.9,2.3711]
[1754074719272,4.693,3552.5,3552.3,2.8150699]
[1754074719590,4.691,3552.4,3552.2,2.8151412]
[1754074719776,4.691,3552.4,3552.2,2.81514901]
[1754074720170,4.691,3552.4,3552.1,2.81521244]
[1754074720384,4.691,3552.4,3551.6,1.8969]
[1754074720685,0.55,3552.3,3551.5,0.4742]
[1754074720893,1.0741,3552.3,3551.2,1.8969]
[1754074721094,0.55,3552.1,3551.5,2.8157014]
[1754074721258,1.0741,3552.3,3551.5,2.8157014]
[1754074721464,1.0741,3552.3,3551.5,2.81569231]
[1754074721898,0.55,3551.9,3551.3,2.81584789]
[1754074722064,0.55,3551.7,3551.2,2.81587913]
[1754074722266,0.1408,3551.4,3551.1,0.4742]
[1754074722468,4.685,3551.3,3551.2,2.81594953]
[1754074723113,4.685,3551.3,3551.1,5.18711149]
[1754074723407,4.685,3551.3,3550.5,2.3711]
[1754074723711,4.685,3551.3,3549.4,1e-08]
[1754074723712,3.36650471,3550.5,3549.4,1e-08]
[1754074723878,8.04650471,3550.5,3549.4,1e-08]
[1754074724083,10.28810471,3550.5,3549.4,1e-08]
[1754074724271,10.28810471,3550.5,3549.4,2.81734837]
[1754074724481,0.55,3550.5,3549.7,2.81707327]
[1754074724681,5.272,3550.5,3549.8,2.81702689]
[1754074724882,5.272,3550.5,3549.8,2.81699437]
[1754074725084,5.272,3550.5,3549.6,2.3711]
[1754074725307,0.55,3550.5,3549.8,1.8969]
[1754074725511,5.269,3550.5,3550.0,3.28922612]
[1754074725698,4.719,3550.5,3550.4,5.14288404]
[1754074725894,6.762,3551.2,3550.4,5.14287519]
[1754074726107,4.718,3551.1,3550.4,2.3263]
[1754074726311,4.718,3551.1,3550.4,0.002]
[1754074726522,0.55,3551.0,3550.5,2.8164888]
[1754074726731,4.717,3550.9,3550.8,2.81626675]
[1754074727038,4.717,3550.9,3550.8,5.14056675]
[1754074727326,4.717,3550.9,3550.8,8.14056675]
[1754074727529,6.762,3551.2,3551.1,2.81602883]
[1754074727691,4.714,3551.2,3551.1,5.14032883]
[1754074727874,4.714,3551.2,3551.1,8.14032883]
[1754074728985,11.32,3552.2,3551.1,5.3243]
[1754074729214,4.712,3552.1,3551.7,2.81551381]
[1754074729481,4.707,3552.0,3551.1,2.3243]
[1754074729768,4.707,3552.0,3551.7,2.81555047]
[1754074729944,4.707,3552.0,3551.5,2.81570152]
[1754074730144,4.707,3552.0,3551.7,2.81548782]
[1754074730872,4.707,3552.0,3551.9,2.81539457]
[1754074731030,4.707,3552.0,3551.8,2.81545164]
[1754074731237,4.707,3552.0,3551.9,2.81539457]
[1754074731575,6.763,3552.5,3551.9,2.81539457]
[1754074731576,6.763,3552.5,3551.9,2.3243]
[1754074731782,6.2286,3554.1,3553.6,2.81398434]
[1754074732071,4.7,3554.0,3553.2,3.0]
[1754074732277,10.0,3554.2,3553.3,2.81428531]
[1754074732502,4.7,3554.1,3553.6,3.0]
[1754074732634,4.7,3554.1,3554.0,2.813731]
[1754074732972,4.7,3554.1,3553.7,2.3243]
[1754074733131,4.7,3554.1,3553.9,2.81378111]
[1754074733337,5.1701,3554.1,3553.3,1.8519]
[1754074733567,5.1701,3554.1,3553.7,2.81395809]
[1754074733728,5.1701,3554.1,3553.8,2.81387222]
[1754074733933,5.1701,3554.1,3553.3,2.3243]
[1754074734157,5.1701,3554.1,3553.6,3.0]
[1754074734371,5.1701,3554.1,3553.5,3.0]
[1754074734580,0.55,3554.0,3553.5,2.81410358]
[1754074734741,0.55,3554.0,3553.6,2.81404327]
[1754074734950,0.55,3554.0,3553.6,3.0]
[1754074735178,1.0751,3554.0,3550.9,0.1]
[1754074735344,1.0751,3554.0,3551.8,0.4724]
[1754074735345,0.55,3553.3,3551.8,0.4724]
[1754074735544,0.55,3553.1,3551.9,1.88005394]
[1754074735750,0.55,3553.1,3552.7,2.81470227]
[1754074736061,0.55,3553.1,3552.7,0.4724]
[1754074736062,0.55,3553.0,3552.7,0.4724]
[1754074736782,0.55,3553.0,3552.2,0.4724]
[1754074736962,0.55,3553.0,3552.3,3.0]
[1754074737476,1.9286,3553.8,3552.4,2.3243]
[1754074737680,0.001,3554.3,3552.7,10.031942]
[1754074737841,4.718,3554.2,3552.8,0.02814681]
[1754074738037,0.55,3554.1,3553.3,2.81425873]
[1754074738451,4.718,3554.2,3553.0,3.0]
[1754074738668,7.7948,3554.2,3552.9,2.3243]
[1754074738979,0.55,3554.0,3553.1,3.0]
[1754074739151,0.55,3553.8,3552.9,3.0]
[1754074739340,0.55,3553.6,3552.6,2.81478608]
[1754074739540,0.55,3553.6,3552.6,3.0]
[1754074739777,0.5265,3553.5,3552.6,2.81483301]
[1754074739961,0.5265,3553.5,3552.5,2.3243]
[1754074740473,0.5265,3553.5,3552.6,2.81476261]
[1754074740639,0.5265,3553.5,3552.8,3.0]
[1754074740840,0.5265,3553.5,3552.7,3.0]
[1754074741053,0.5265,3553.5,3552.7,2.81474756]
[1754074741238,0.5265,3553.5,3552.5,5.3243]
[1754074741441,0.55,3553.6,3552.5,5.3243]
[1754074741442,0.55,3553.3,3552.5,5.13916935]
[1754074741743,0.55,3553.3,3552.5,5.13920392]
[1754074741975,0.55,3553.3,3552.6,2.81482652]
[1754074742281,0.55,3553.3,3552.7,3.0]
[1754074742653,0.55,3553.3,3552.7,2.81475951]
[1754074742974,4.715,3553.7,3553.3,2.81422721]
[1754074743184,4.715,3553.7,3553.4,2.3243]
[1754074743354,4.715,3553.7,3553.5,3.0]
[1754074743552,0.0357,3554.2,3553.8,3.0]
[1754074743851,0.0357,3554.2,3553.6,2.3243]
[1754074743852,0.0357,3554.2,3554.1,2.81365183]
[1754074744178,4.7,3554.5,3554.2,2.81357267]
[1754074744342,4.7,3554.5,3554.1,2.81362781]
[1754074744540,4.7,3554.5,3554.2,3.0]
[1754074744744,0.001,3554.7,3554.2,2.81357267]
[1754074745153,0.001,3554.7,3554.2,8.13787267]
[1754074745353,0.001,3554.7,3554.2,25.33144867]
[1754074745594,0.001,3554.7,3554.2,12.96866267]
[1754074746279,0.001,3554.7,3554.2,16.86647467]
[1754074746481,1e-08,3554.3,3554.2,16.86647467]
[1754074746686,2.81143781,3556.9,3554.4,2.81341435]
[1754074746687,1.9286,3556.6,3554.4,2.81341435]
[1754074746853,4.693,3556.4,3555.6,2.81241461]
[1754074747055,4.693,3556.4,3555.7,0.02812385]
[1754074747405,4.693,3556.4,3555.7,3.0]
[1754074747608,6.76,3557.1,3555.8,8.16472971]
[1754074747885,4.693,3557.0,3555.8,10.97160665]
[1754074748195,0.66329603,3557.6,3555.8,11.17939429]
[1754074748552,4.689,3557.3,3555.8,8.34439429]
[1754074748757,4.689,3557.3,3555.8,11.23252329]
[1754074748952,4.689,3557.3,3555.8,19.17952329]
[1754074749180,4.689,3557.3,3555.8,18.97173565]
[1754074749394,0.55,3557.2,3555.8,16.03118565]
[1754074749574,0.55,3556.9,3555.8,3.0]
[1754074749889,7.83788617,3557.2,3555.8,3.0]
[1754074749890,0.55,3556.4,3555.8,3.0]
[1754074751309,0.55,3556.1,3555.1,1.8519]
[1754074751591,0.55,3555.7,3554.5,0.4724]
[1754074751776,0.55,3555.7,3553.1,7.28788617]
[1754074751777,0.55,3555.7,3554.2,0.4724]
[1754074751977,5.235,3555.7,3554.3,7.998029]
[1754074752191,5.235,3555.7,3554.6,3.0]
[1754074752366,5.235,3555.7,3554.3,1.8519]
[1754074752576,0.001,3555.9,3554.6,3.0]
[1754074752897,0.001,3555.9,3555.3,3.0]
[1754074753279,0.001,3555.9,3555.4,2.3243]
[1754074753666,0.001,3555.9,3555.5,2.35242543]
[1754074753867,0.001,3555.9,3555.8,11.03884365]
[1754074754562,0.001,3555.9,3555.8,10.550837]
[1754074754759,0.001,3555.9,3555.8,13.36314365]
[1754074754963,0.001,3555.9,3555.8,10.550837]
[1754074755459,0.001,3555.9,3555.8,8.167071]
[1754074756079,0.001,3555.9,3555.8,5.3243]
[1754074756475,0.001,3555.9,3555.8,34.19252471]
[1754074756697,0.001,3555.9,3555.8,18.62263165]
[1754074757007,0.001,3555.9,3555.8,17.13119265]
[1754074757671,0.001,3555.9,3555.8,18.11005165]
[1754074758603,0.001,3555.9,3555.8,31.50101865]
[1754074758897,0.001,3555.9,3555.8,16.52827565]
[1754074759706,0.001,3555.9,3555.8,16.11050565]
[1754074760458,0.001,3555.9,3555.8,13.01198098]
[1754074760667,0.001,3555.9,3555.8,20.49629233]
[1754074760854,0.001,3555.9,3555.8,15.96519933]
[1754074761162,0.001,3555.9,3555.8,7.655]
[1754074761358,0.001,3555.9,3555.6,4.655]
[1754074761657,0.001,3555.9,3555.3,0.446]
[1754074761989,0.001,3555.9,3555.4,4.655]
[1754074762170,0.001,3555.9,3555.6,15.526286]
[1754074762374,0.001,3555.9,3555.5,8.14424163]
[1754074762375,0.001,3555.9,3555.8,3.0]
[1754074763100,0.001,3555.9,3555.8,5.2368]
[1754074763607,0.001,3555.9,3555.8,7.26805]
[1754074763791,0.001,3555.9,3555.8,3.0]
[1754074764564,0.001,3555.9,3555.3,3.02304828]
[1754074764565,0.001,3555.9,3555.4,5.81259289]
[1754074764763,0.001,3555.9,3555.6,3.0]
[1754074765359,0.001,3555.9,3555.8,3.0]
[1754074765699,0.55,3555.7,3555.6,3.0]
[1754074765999,0.55,3555.7,3555.3,3.0]
[1754074766000,2.4565,3555.7,3555.3,3.0]
[1754074766201,2.4565,3555.7,3554.6,0.446]
[1754074766366,0.55,3555.5,3554.6,7.90224357]
[1754074766565,0.55,3555.5,3554.7,4.643]
[1754074766765,0.55,3555.5,3554.8,5.453429]
[1754074766999,3.1084375,3555.5,3555.1,3.0]
[1754074767199,2.81702148,3555.5,3555.1,4.8576]
[1754074767446,2.81702148,3555.5,3555.1,3.0]
[1754074767805,2.02473418,3555.5,3555.1,3.4524799]
[1754074768113,0.001,3555.9,3555.1,5.3036]
[1754074768546,0.001,3555.9,3555.4,0.1408]
[1754074769348,0.551,3555.9,3555.4,0.1408]
[1754074769543,1.9065,3555.8,3555.3,3.0]
[1754074769727,2.0473,3555.8,3555.3,3.1408]
[1754074770650,0.1408,3555.8,3555.3,3.1408]
[1754074770841,0.1408,3555.8,3555.4,0.02812623]
[1754074771004,0.001,3555.9,3555.7,0.1408]
[1754074771864,0.001,3556.3,3555.9,3.0]
[1754074772039,4.628,3557.3,3556.1,3.0]
[1754074772351,4.628,3557.3,3555.2,5.3036]
[1754074772352,0.55,3556.2,3555.2,5.3036]
[1754074772650,2.4565,3556.2,3555.2,5.3036]
[1754074773422,2.4565,3556.2,3555.3,0.02812702]
[1754074773752,7.28788617,3556.3,3555.7,3.0]
[1754074774314,0.55,3556.4,3555.8,0.02812306]
[1754074774535,2.4565,3556.7,3555.7,3.0]
[1754074774536,0.55,3556.6,3555.7,5.3036]
[1754074774735,1.98733862,3556.6,3555.7,5.3036]
[1754074775277,0.55,3556.6,3555.7,5.3036]
[1754074775472,11.91688617,3556.9,3555.7,5.3036]
[1754074775636,0.55,3556.8,3555.7,8.1159791]
[1754074775836,0.55,3556.8,3555.9,3.0]
[1754074776071,11.91688617,3556.9,3556.1,3.0]
[1754074776273,11.91688617,3556.9,3556.0,2.3036]
[1754074776570,0.55,3556.8,3556.0,2.2536]
[1754074777379,0.551,3556.6,3556.0,3.0]
[1754074777734,0.551,3556.6,3555.2,2.81271824]
[1754074777735,0.001,3556.6,3555.8,0.446]
[1754074777932,0.001,3556.6,3555.8,0.47412306]
[1754074778132,0.001,3556.6,3555.8,0.446]
[1754074778837,7.28788617,3556.3,3555.6,4.619]
[1754074779033,2.4565,3556.2,3555.2,1.8576]
[1754074779238,2.4565,3556.2,3555.2,12.28838083]
[1754074779439,2.4565,3556.2,3555.3,0.02812702]
[1754074779664,2.4565,3556.2,3555.4,3.0]
[1754074779860,2.4565,3556.2,3555.3,3.0]
[1754074780450,1.9065,3556.1,3555.0,0.002]
[1754074780655,3.77273862,3556.1,3555.0,0.002]
[1754074781179,3.77273862,3556.1,3553.6,2.81398729]
[1754074781180,0.55,3555.0,3553.6,2.81398729]
[1754074781381,7.28788617,3555.1,3553.7,6.15323172]
[1754074781382,0.55,3554.8,3553.7,6.15323172]
[1754074781597,0.55,3554.8,3553.4,4.616]
[1754074781741,0.55,3554.8,3553.5,0.5973505]
[1754074781742,7.28788617,3554.5,3553.5,0.5973505]
[1754074781944,0.55,3553.8,3552.5,2.3036]
[1754074782142,0.55,3553.8,3553.0,0.1408]
[1754074782143,0.1408,3553.5,3553.0,0.1408]
[1754074782489,0.1408,3553.4,3552.9,0.1408]
[1754074782797,0.55,3553.1,3552.6,0.1408]
[1754074782996,5.168,3553.1,3552.6,0.1408]
[1754074783281,4.618,3553.1,3552.7,0.446]
[1754074783481,4.618,3553.1,3552.8,0.1408]
[1754074783865,4.618,3553.1,3552.5,0.20685928]
[1754074784074,4.7598,3553.1,3552.6,0.1408]
[1754074784255,4.617,3553.1,3552.7,0.446]
[1754074784459,4.617,3553.1,3552.9,0.1408]
[1754074785269,4.616,3553.1,3552.9,0.1408]
[1754074785972,0.1408,3553.4,3553.0,0.4555]
[1754074786188,4.615,3553.3,3553.1,0.4555]
[1754074786888,4.615,3553.3,3553.1,0.5963]
[1754074788716,0.1408,3553.7,3553.1,0.5963]
[1754074788918,4.607,3553.5,3553.1,0.5963]
[1754074789212,4.7478,3553.5,3553.0,0.1408]
[1754074789513,0.55,3553.1,3553.0,0.1408]
[1754074789685,0.6908,3553.1,3552.6,0.1408]
[1754074790085,4.605,3553.0,3552.6,0.1408]
[1754074791311,0.55,3552.9,3552.5,0.21441248]
[1754074791625,0.1408,3552.8,3552.3,0.1408]
[1754074792798,0.1408,3552.8,3552.3,0.73547675]
[1754074793002,0.55,3552.6,3552.3,0.59467675]
[1754074793175,0.1408,3552.5,3551.5,0.4555]
[1754074793389,4.603,3552.4,3552.0,0.1408]
[1754074793731,0.55,3553.2,3552.3,0.1408]
[1754074793929,0.1408,3552.8,3552.3,0.1408]
[1754074794234,4.4408,3552.8,3552.3,0.1408]
[1754074794608,4.603,3552.7,3552.3,0.1408]
[1754074794790,4.4408,3552.8,3552.3,0.1408]
[1754074794989,4.603,3552.7,3552.3,0.1408]
[1754074795228,4.4408,3552.8,3552.3,0.1408]
[1754074795537,4.603,3553.0,3552.6,0.1408]
[1754074795686,4.603,3553.0,3552.7,0.4555]
[1754074795889,4.603,3553.0,3552.8,0.5963]
[1754074796087,4.603,3553.1,3552.9,0.4555]
[1754074796488,4.603,3553.1,3553.0,0.1408]
[1754074796934,0.1408,3553.5,3553.0,0.5963]
[1754074797174,4.603,3553.7,3553.1,0.4555]
[1754074797439,4.603,3553.7,3553.4,0.1408]
[1754074797732,0.1408,3554.0,3553.4,0.5963]
[1754074797933,7.864951,3554.4,3553.5,3.0]
[1754074797934,4.603,3553.9,3553.5,3.0]
[1754074798231,4.603,3553.9,3553.7,0.1408]
[1754074798618,0.55,3553.8,3553.7,0.1408]
[1754074798792,0.6908,3553.8,3553.4,0.20795117]
[1754074798996,0.55,3553.6,3552.9,0.002]
[1754074799294,0.1,3552.0,3551.1,0.4555]
[1754074799495,4.603,3551.9,3551.2,5.41787949]
[1754074799721,4.703,3551.9,3551.2,0.23672352]
[1754074800042,4.603,3551.9,3551.3,0.4555]
[1754074800245,0.55,3551.8,3551.2,0.79236581]
[1754074800407,0.55,3551.3,3550.4,0.4555]
[1754074800610,0.1,3550.7,3550.4,0.4555]
[1754074800811,4.712,3550.7,3548.9,6.759]
[1754074801114,0.1,3550.2,3549.1,3.629552]
[1754074801294,5.1382,3550.7,3549.2,0.4555]
[1754074801295,0.1,3550.1,3549.2,0.4555]
[1754074801495,0.1,3549.9,3549.2,0.4555]
[1754074801737,4.611,3550.1,3549.3,3.937522]
[1754074802041,0.55,3549.5,3548.9,0.79974977]
[1754074802346,0.1,3550.1,3549.0,0.02817695]
[1754074802489,5.78220935,3552.2,3549.2,3.0]
[1754074802490,4.614,3550.0,3549.2,3.0]
[1754074802697,0.1,3550.5,3549.5,14.877525]
[1754074802894,0.1,3551.2,3550.7,2.172108]
[1754074803125,0.1,3551.2,3550.8,0.4555]
[1754074803339,0.1,3550.9,3550.7,0.21103511]
[1754074803539,0.1,3550.9,3550.5,3.0]
[1754074803696,0.1,3550.9,3550.1,0.4555]
[1754074804340,0.1,3550.9,3550.3,3.0]
[1754074804495,4.614,3551.1,3550.5,3.0]
[1754074804740,0.1,3550.7,3550.0,3.0]
[1754074804946,0.1,3550.9,3549.3,5.81740204]
[1754074805139,0.1,3550.9,3549.2,4.622]
[1754074805140,0.1,3550.7,3550.4,3.0]
[1754074805384,4.622,3550.8,3550.5,0.02816504]
[1754074805545,2.81532208,3552.0,3550.0,2.8168964]
[1754074805546,7.2271,3552.2,3550.9,3.0]
[1754074805747,0.1,3551.2,3551.0,0.02816108]
[1754074805976,0.1,3551.2,3550.4,6.68536]
[1754074806158,0.1,3551.4,3550.7,3.0]
[1754074806363,4.622,3551.1,3550.9,3.0]
[1754074806567,7.28788617,3552.5,3549.7,2.81707517]
[1754074806568,0.1,3551.9,3551.2,2.81591604]
[1754074806881,4.622,3552.0,3551.3,0.4836587]
[1754074807092,4.722,3552.0,3550.9,3.4555]
[1754074807244,0.1,3551.6,3550.6,4.20236]
[1754074807576,0.1,3552.0,3551.3,11.711256]
[1754074807885,0.4661,3552.5,3551.3,5.212958]
[1754074807886,4.723,3551.9,3551.3,5.212958]
[1754074808088,0.1,3551.5,3551.3,3.0]
[1754074808586,4.623,3551.9,3551.4,0.0281579]
[1754074808587,0.1,3551.8,3551.4,0.0281579]
[1754074809096,0.1,3551.5,3550.8,0.4555]
[1754074809261,0.1,3551.1,3549.9,0.4555]
[1754074809468,0.2408,3551.5,3550.0,0.02816901]
[1754074809644,4.621,3551.3,3551.0,0.1408]
[1754074809845,4.721,3551.3,3551.2,0.1408]
[1754074810075,5.1931,3551.3,3551.2,0.1408]
[1754074810258,4.722,3551.3,3551.2,0.1408]
[1754074810449,4.622,3551.3,3551.2,0.1408]
[1754074810675,0.1,3551.5,3550.8,3.0]
[1754074810879,0.1,3551.5,3551.2,0.1408]
[1754074811076,0.845338,3552.4,3551.4,0.1408]
[1754074811386,0.1,3551.9,3551.8,0.1408]
[1754074811794,0.1,3552.5,3552.0,3.0]
[1754074812001,0.1,3552.2,3551.8,0.5963]
[1754074812296,0.1,3552.2,3550.8,2.81622755]
[1754074812297,0.1,3552.2,3551.4,2.81573191]
[1754074812448,0.1,3552.2,3550.7,4.624]
[1754074812449,0.1,3552.1,3551.7,2.734795]
[1754074812644,5.0901,3552.7,3552.1,0.1408]
[1754074812645,0.1,3552.5,3552.1,0.1408]
[1754074812848,0.1,3552.1,3552.0,0.1408]
[1754074813097,0.1,3552.1,3552.0,0.35741809]
[1754074813304,0.1,3552.4,3552.0,0.1408]
[1754074813462,0.1,3553.2,3552.2,30.0]
[1754074813802,0.102,3553.7,3553.2,11.839642]
[1754074813952,0.102,3553.7,3552.4,2.8149435]
[1754074813953,0.002,3553.7,3553.6,0.1408]
[1754074814151,0.102,3553.7,3553.6,0.35050609]
[1754074815157,0.002,3553.7,3553.6,0.20970609]
[1754074815488,0.002,3553.7,3553.6,18.77659047]
[1754074815688,0.002,3553.7,3553.6,3.1408]
[1754074816455,0.002,3553.7,3553.6,24.95036]
[1754074816687,0.67115785,3554.7,3553.7,3.0]
[1754074816921,0.67115785,3554.7,3554.1,2.81363493]
[1754074817233,4.629,3555.2,3554.7,3.0]
[1754074817500,0.1,3554.9,3554.6,0.1408]
[1754074817701,0.1,3554.9,3554.5,2.265194]
[1754074818007,0.4724,3555.6,3555.0,3.0]
[1754074818161,0.52382,3555.5,3554.8,0.1408]
[1754074818360,4.623,3555.7,3554.9,5.84113786]
[1754074818574,0.1,3555.9,3555.4,0.1408]
[1754074818760,0.1,3555.7,3555.6,0.1408]
[1754074819843,4.621,3556.2,3555.2,0.02812781]
[1754074820132,0.1,3555.7,3555.6,0.1408]
[1754074820431,0.5724,3555.7,3555.0,0.21573206]
[1754074820580,6.761,3556.5,3555.5,0.1408]
[1754074820581,0.1,3555.6,3555.5,0.1408]
[1754074821499,4.618,3556.0,3555.6,9.956711]
[1754074821695,4.618,3556.0,3555.9,0.1408]
[1754074822023,0.1,3556.1,3555.9,0.1408]
[1754074822224,0.1,3556.0,3555.9,0.1408]